bitfinex/quotes_SOLUSD_20251006
["timestamp","ask_amount","ask_price","bid_price","bid_amount"]
[1759772937503,0.66,235.79,235.77,1e-08]
[1759772938126,0.66,235.78,235.77,1e-08]
[1759772938307,0.66,235.79,235.77,1e-08]
[1759772938501,33.25359818,235.8,235.77,1e-08]
[1759772938707,0.66,235.78,235.77,1e-08]
[1759772939730,35.14124183,235.78,235.77,1e-08]
[1759772940034,30.24,235.78,235.77,1e-08]
[1759772940705,38.15484001,235.78,235.77,1e-08]
[1759772940904,33.91359818,235.78,235.77,1e-08]
[1759772941223,30.24,235.8,235.77,1e-08]
[1759772941813,34.4809151,235.8,235.77,1e-08]
[1759772943716,4.24124183,235.78,235.77,1e-08]
[1759772944424,4.90124183,235.78,235.77,1e-08]
[1759772944624,4.24124183,235.78,235.77,1e-08]
[1759772945128,30.24,235.8,235.77,1e-08]
[1759772945432,10.5987397,235.88,235.77,4.93142173]
[1759772945612,30.24,235.87,235.78,0.69]
[1759772945811,34.47978773,235.87,235.79,4.24106196]
[1759772946026,34.47978773,235.87,235.8,0.69]
[1759772947538,35.13978773,235.87,235.8,0.69]
[1759772948427,35.13978773,235.87,235.78,4.93122557]
[1759772948833,34.47978773,235.87,235.78,4.93122557]
[1759772949025,0.66,235.86,235.78,0.69]
[1759772949227,0.66,235.86,235.79,0.69]
[1759772949822,4.23998304,235.85,235.77,1e-08]
[1759772950028,32.17316995,235.84,235.77,1e-08]
[1759772950216,32.83316995,235.84,235.77,1e-08]
[1759772950418,30.9,235.84,235.77,1e-08]
[1759772951021,32.83316995,235.84,235.77,1e-08]
[1759772951229,1.93316995,235.82,235.77,1e-08]
[1759772951428,1.93316995,235.83,235.77,1e-08]
[1759772951727,0.66,235.81,235.77,1e-08]
[1759772952229,0.66,235.8,235.77,1e-08]
[1759772952615,0.66,235.86,235.78,0.69]
[1759772952832,30.22,235.85,235.78,0.69]
[1759772953421,30.88,235.85,235.78,0.69]
[1759772953737,35.12014045,235.85,235.78,0.69]
[1759772954515,30.88,235.85,235.78,4.93123408]
[1759772955943,30.22,235.85,235.79,0.69]
[1759772956235,0.66,235.84,235.77,1e-08]
[1759772956740,0.66,235.87,235.79,20.8]
[1759772956918,0.66,235.87,235.8,0.69]
[1759772957344,0.66,235.9,235.8,21.49]
[1759772957633,0.66,235.9,235.81,0.69]
[1759772958044,0.66,235.9,235.82,4.24052243]
[1759772958742,0.66,235.9,235.82,4.93052243]
[1759772959326,30.22,235.92,235.83,0.69]
[1759772959641,4.91871848,235.93,235.83,0.69]
[1759772959837,0.68,235.93,235.85,20.8]
[1759772960142,0.68,235.93,235.86,0.69]
[1759772961129,0.68,235.93,235.87,25.03962352]
[1759772961454,0.68,235.92,235.87,20.8]
[1759772961633,0.68,235.91,235.87,20.8]
[1759772962030,0.68,235.93,235.87,21.49]
[1759772962236,30.22,235.94,235.87,20.8]
[1759772962426,30.22,235.94,235.87,21.49]
[1759772963051,30.9,235.94,235.87,21.49]
[1759772963251,30.9,235.94,235.88,4.23944378]
[1759772963829,34.45838737,235.94,235.86,20.8]
[1759772964032,0.68,235.93,235.86,21.49]
[1759772964437,0.68,235.93,235.86,25.72969907]
[1759772967235,0.68,235.92,235.87,20.8]
[1759772967538,0.68,235.91,235.87,20.8]
[1759772968329,0.68,235.93,235.87,21.49]
[1759772968748,0.68,235.93,235.87,25.7295241]
[1759772968933,4.23836582,235.94,235.87,25.0395241]
[1759772969135,0.68,235.92,235.87,25.0395241]
[1759772969636,0.68,235.94,235.87,25.7295241]
[1759772971139,0.68,235.94,235.87,25.0395241]
[1759772971341,0.68,235.94,235.88,0.69]
[1759772972553,0.68,235.94,235.88,4.92935708]
[1759772972754,30.9,235.97,235.89,0.69]
[1759772974158,35.13782925,235.97,235.89,0.69]
[1759772974455,30.9,235.97,235.89,0.69]
[1759772974655,0.68,235.99,235.9,4.23908435]
[1759772974836,0.68,235.99,235.91,0.69]
[1759772975639,0.68,235.99,235.92,4.23872499]
[1759772975837,0.7,235.98,235.92,4.23872499]
[1759772976757,0.7,235.97,235.92,4.23872499]
[1759772977053,0.7,235.96,235.92,4.23872499]
[1759772978359,0.7,235.96,235.91,4.23890466]
[1759772978549,0.7,235.96,235.91,4.92890466]
[1759772981354,4.23751443,235.99,235.91,4.23890466]
[1759772981548,0.7,235.96,235.91,4.23890466]
[1759772982464,0.7,235.96,235.91,4.92890466]
[1759772983369,1.93316995,236.01,235.88,20.8]
[1759772983570,2.63316995,235.95,235.84,0.69]
[1759772983775,2.63316995,235.95,235.84,30.89]
[1759772983980,1.93316995,235.95,235.84,30.89]
[1759772984156,0.7,235.94,235.87,20.8]
[1759772984351,4.23872499,235.92,235.87,20.8]
[1759772984545,0.7,235.91,235.87,20.8]
[1759772984749,0.7,235.9,235.87,20.8]
[1759772985160,1.93316995,235.95,235.87,20.8]
[1759772985366,0.7,235.94,235.87,20.8]
[1759772985563,0.7,235.93,235.87,20.8]
[1759772985760,0.7,235.92,235.87,20.8]
[1759772985956,0.7,235.94,235.87,25.03958416]
[1759772986145,0.7,235.94,235.88,0.69]
[1759772986347,0.7,235.96,235.89,4.23926406]
[1759772986548,0.7,235.96,235.89,4.92926406]
[1759772986749,0.7,235.96,235.9,0.69]
[1759772987261,0.7,235.96,235.89,4.23926406]
[1759772987660,0.7,235.96,235.89,4.92926406]
[1759772992666,0.72,235.95,235.89,4.92926406]
[1759772993276,0.72,235.99,235.9,0.69]
[1759772994583,0.72,236.01,235.91,35.63616632]
[1759772994884,0.72,236.01,235.92,0.69]
[1759772995787,4.9571578,236.01,235.93,4.23854533]
[1759772995988,0.72,236.0,235.93,4.23854533]
[1759772996674,0.72,236.0,235.94,0.69]
[1759772997889,0.72,236.0,235.94,4.9282237]
[1759772998297,0.72,236.0,235.94,0.69]
[1759772998477,0.72,236.0,235.93,4.23847636]
[1759772998792,4.23717985,236.01,235.92,4.92871791]
[1759772999088,0.72,235.99,235.92,34.41871791]
[1759773000193,0.72,235.99,235.92,35.10871791]
[1759773002165,0.72,235.99,235.93,0.69]
[1759773002590,0.72,236.02,235.94,4.23836568]
[1759773002893,0.72,236.04,235.95,21.49]
[1759773003073,0.72,236.04,235.96,0.69]
[1759773003690,4.95661652,236.04,235.95,20.8]
[1759773003990,0.72,236.03,235.95,20.8]
[1759773004189,0.72,236.02,235.95,20.8]
[1759773004583,0.72,236.01,235.95,20.8]
[1759773004890,1.93316995,235.98,235.89,30.85]
[1759773005083,0.72,235.97,235.89,30.85]
[1759773006105,4.95782849,235.97,235.9,4.23908435]
[1759773007099,4.95782849,235.97,235.89,35.08924711]
[1759773007402,0.72,235.96,235.89,30.85]
[1759773008090,0.72,235.96,235.89,35.08923288]
[1759773009307,0.72,235.96,235.89,25.72923288]
[1759773009479,0.72,235.96,235.89,55.88923288]
[1759773010476,4.95801535,235.96,235.89,55.88923288]
[1759773011273,4.23801535,235.96,235.87,4.23945129]
[1759773011484,0.72,235.95,235.86,21.49]
[1759773011680,0.72,235.94,235.88,20.8]
[1759773011883,0.72,235.93,235.88,20.8]
[1759773012096,0.72,235.92,235.88,20.8]
[1759773012292,0.72,235.91,235.88,20.8]
[1759773012495,0.72,235.91,235.86,0.69]
[1759773012684,0.72,235.93,235.88,20.8]
[1759773013191,10.87647521,235.98,235.89,0.69]
[1759773013192,4.23785324,235.97,235.89,0.69]
[1759773013388,4.23785324,235.97,235.89,21.49]
[1759773013583,0.72,235.98,235.9,0.69]
[1759773014480,7.97351235,235.98,235.89,20.8]
[1759773014681,7.97351235,235.98,235.85,4.92981417]
[1759773014682,3.01585063,235.95,235.85,4.92981417]
[1759773015008,0.72,235.94,235.85,55.88981417]
[1759773015301,0.72,235.93,235.85,55.88981417]
[1759773015680,4.9586935,235.93,235.85,55.88981417]
[1759773015885,4.9586935,235.93,235.85,25.72981417]
[1759773016125,4.9586935,235.93,235.87,20.8]
[1759773016595,0.72,235.93,235.87,20.8]
[1759773016783,0.72,235.93,235.87,21.49]
[1759773017198,4.95798072,235.97,235.88,0.69]
[1759773017400,15.11404974,235.99,235.88,0.69]
[1759773017610,15.83404974,235.99,235.88,0.69]
[1759773017806,15.83404974,235.99,235.89,4.23926406]
[1759773018102,0.72,235.98,235.9,0.69]
[1759773018306,20.8,236.0,235.9,0.69]
[1759773018520,0.72,236.02,235.92,20.8]
[1759773018691,0.72,236.02,235.93,0.69]
[1759773020310,0.72,236.02,235.94,25.03836568]
[1759773020502,4.95693976,236.02,235.94,25.72836568]
[1759773020702,0.72,236.01,235.94,25.03836568]
[1759773020905,0.72,236.01,235.94,20.8]
[1759773021288,3.01585063,235.95,235.86,4.68123254]
[1759773021592,0.72,235.94,235.84,0.69]
[1759773021804,3.01585063,235.92,235.84,0.69]
[1759773022029,3.73585063,235.91,235.81,4.24066065]
[1759773022324,4.23908435,235.9,235.82,25.73051583]
[1759773022483,4.23908435,235.9,235.82,4.93051583]
[1759773022890,4.23908435,235.9,235.82,25.73051583]
[1759773023099,0.72,235.91,235.82,25.73051583]
[1759773023308,0.72,235.91,235.77,5.37123255]
[1759773023309,0.72,235.9,235.77,5.37123255]
[1759773023516,3.01585063,235.86,235.77,5.37123255]
[1759773023694,0.72,235.87,235.78,0.69]
[1759773023890,0.72,235.89,235.79,20.8]
[1759773024088,20.8,235.92,235.8,0.69]
[1759773024089,0.72,235.92,235.8,0.69]
[1759773024413,4.23908435,235.9,235.79,0.69]
[1759773024610,0.72,235.9,235.81,0.69]
[1759773025687,0.72,235.92,235.81,0.69]
[1759773026393,4.23890466,235.91,235.82,4.24052243]
[1759773026594,4.23890466,235.91,235.82,4.93052243]
[1759773027723,4.95890466,235.91,235.82,4.93052243]
[1759773030719,4.95890466,235.91,235.83,0.69]
[1759773032211,4.95890466,235.91,235.81,4.24070226]
[1759773032415,0.72,235.9,235.81,4.24070226]
[1759773032613,3.01585063,235.92,235.8,156.54087648]
[1759773032614,4.23944378,235.88,235.8,156.54087648]
[1759773032812,3.01585063,235.86,235.77,1e-08]
[1759773033008,3.01585063,235.86,235.78,20.8]
[1759773033213,0.72,235.85,235.78,20.8]
[1759773033395,0.72,235.84,235.78,20.8]
[1759773033919,3.01585063,235.86,235.77,1e-08]
[1759773034122,0.72,235.83,235.78,20.8]
[1759773034294,0.72,235.82,235.78,20.8]
[1759773034501,3.01585063,235.85,235.78,20.8]
[1759773034502,0.72,235.81,235.78,20.8]
[1759773034711,0.72,235.8,235.78,20.8]
[1759773035029,0.72,235.82,235.77,20.80000001]
[1759773035231,4.24016282,235.84,235.77,20.80000001]
[1759773035232,0.72,235.81,235.77,20.80000001]
[1759773035616,0.72,235.81,235.77,25.04140564]
[1759773036130,0.65,235.86,235.78,21.47]
[1759773036527,0.65,235.85,235.78,20.8]
[1759773037112,0.65,235.85,235.77,4.24140564]
[1759773037113,0.65,235.84,235.77,1e-08]
[1759773038528,3.01585063,235.83,235.77,1e-08]
[1759773038732,3.01585063,235.82,235.77,1e-08]
[1759773039031,3.66585063,235.82,235.77,1e-08]
[1759773039211,10.87647521,235.85,235.77,1e-08]
[1759773039411,0.65,235.81,235.77,1e-08]
[1759773039930,4.24016282,235.84,235.77,1e-08]
[1759773040132,0.65,235.8,235.77,1e-08]
[1759773040510,0.65,235.79,235.77,1e-08]
[1759773040906,4.24016282,235.84,235.77,1e-08]
[1759773040907,0.65,235.78,235.77,1e-08]
[1759773041107,0.65,235.81,235.77,1e-08]
[1759773041334,0.65,235.8,235.77,1e-08]
[1759773043327,0.65,235.79,235.77,1e-08]
[1759773043529,0.65,235.8,235.77,1e-08]
[1759773044846,0.65,235.79,235.77,1e-08]
[1759773045025,4.24057102,235.82,235.77,1e-08]
[1759773045227,0.65,235.8,235.77,1e-08]
[1759773045642,4.24017581,235.84,235.77,1e-08]
[1759773045846,0.65,235.84,235.77,1e-08]
[1759773046042,0.65,235.84,235.78,0.67]
[1759773046618,0.65,235.84,235.77,1e-08]
[1759773047121,3.01585063,235.79,235.77,1e-08]
[1759773047314,4.24124183,235.78,235.77,1e-08]
[1759773047532,4.89124183,235.78,235.77,1e-08]
[1759773047839,0.65,235.78,235.77,1e-08]
[1759773048434,4.89071073,235.81,235.77,1e-08]
[1759773048657,0.65,235.81,235.77,1e-08]
[1759773048821,30.14,235.82,235.77,1e-08]
[1759773049016,0.65,235.8,235.77,1e-08]
[1759773049415,30.14,235.82,235.77,1e-08]
[1759773049614,23.81585063,235.85,235.77,1e-08]
[1759773049615,0.65,235.85,235.78,0.68]
[1759773051128,0.65,235.85,235.78,4.92113001]
[1759773051754,4.89004397,235.85,235.78,4.9212273]
[1759773052243,0.65,235.85,235.78,4.9212273]
[1759773052643,30.14,235.9,235.79,0.68]
[1759773052644,0.65,235.9,235.79,0.68]
[1759773052842,0.65,235.9,235.81,20.8]
[1759773053145,0.65,235.9,235.81,21.48]
[1759773053343,0.65,235.9,235.83,20.8]
[1759773054056,27.47585063,235.94,235.82,14.84182851]
[1759773054057,0.65,235.92,235.82,14.84182851]
[1759773054238,0.65,235.92,235.84,0.68]
[1759773055051,0.65,235.92,235.86,4.23980327]
[1759773056157,3.01585063,235.9,235.81,20.8]
[1759773056350,0.65,235.89,235.81,25.04068741]
[1759773056737,0.65,235.89,235.82,0.68]
[1759773057337,0.65,235.89,235.83,4.24034261]
[1759773058036,0.65,235.92,235.84,0.68]
[1759773058732,10.87647521,235.94,235.84,0.68]
[1759773058935,11.52647521,235.94,235.84,0.68]
[1759773060349,15.76498145,235.94,235.85,4.23998304]
[1759773060551,0.65,235.93,235.84,0.68]
[1759773060934,3.66585063,235.93,235.83,25.04019948]
[1759773061251,0.65,235.92,235.83,25.04019948]
[1759773061452,0.65,235.92,235.83,25.72019948]
[1759773061841,0.65,235.91,235.83,25.72019948]
[1759773062043,4.88895325,235.91,235.83,25.72019948]
[1759773066132,0.65,235.95,235.84,0.68]
[1759773066356,30.14,235.97,235.84,132.18]
[1759773066533,0.65,235.98,235.87,20.8]
[1759773066738,0.65,235.98,235.88,0.68]
[1759773067263,4.23785541,235.97,235.89,4.23926406]
[1759773067433,4.88785541,235.97,235.89,4.23926406]
[1759773067852,4.88785541,235.97,235.88,0.68]
[1759773069059,4.88785541,235.97,235.87,152.3]
[1759773069060,15.48242251,235.97,235.87,152.3]
[1759773069236,31.67647521,236.0,235.87,20.8]
[1759773069237,4.23854533,235.93,235.87,20.8]
[1759773069643,0.65,235.92,235.83,55.16034261]
[1759773070546,4.23890466,235.91,235.84,0.68]
[1759773071358,0.65,235.9,235.84,0.68]
[1759773071559,4.88908586,235.9,235.84,0.68]
[1759773071935,4.88908586,235.9,235.81,0.68]
[1759773072141,4.88908586,235.9,235.82,30.12]
[1759773072345,0.65,235.89,235.82,30.12]
[1759773074069,0.65,235.89,235.83,4.24034261]
[1759773074265,4.88936178,235.89,235.83,4.24034261]
[1759773074643,0.65,235.89,235.83,4.24034261]
[1759773076480,4.23836568,235.94,235.84,0.68]
[1759773077174,0.65,235.95,235.85,20.8]
[1759773077374,0.65,235.97,235.86,0.68]
[1759773077680,0.65,235.97,235.87,30.12]
[1759773077859,0.65,235.96,235.87,30.12]
[1759773078048,0.71,235.95,235.87,30.12]
[1759773078248,31.39389727,235.99,235.88,0.69]
[1759773078464,0.71,235.98,235.88,0.69]
[1759773079460,51.60904706,236.02,235.9,20.8]
[1759773079773,0.71,236.0,235.91,0.69]
[1759773080457,30.14,236.02,235.92,44.95553746]
[1759773080663,0.71,236.03,235.93,0.69]
[1759773081969,4.9467531,236.03,235.93,0.69]
[1759773083272,15.53862701,236.03,235.93,0.69]
[1759773083856,15.53862701,236.03,235.93,4.92842283]
[1759773084052,0.71,236.02,235.93,4.92842283]
[1759773084259,0.71,236.01,235.93,0.69]
[1759773084470,1.93001167,235.99,235.9,20.8]
[1759773084776,0.71,235.98,235.9,20.8]
[1759773084959,0.71,235.97,235.9,20.8]
[1759773085274,0.71,235.96,235.9,20.8]
[1759773086199,0.71,235.96,235.9,25.03903546]
[1759773086682,0.71,235.96,235.9,35.60721728]
[1759773087899,4.94804413,235.96,235.9,31.36818182]
[1759773088065,4.94804413,235.96,235.9,35.60721632]
[1759773090286,4.94711309,236.01,235.91,0.69]
[1759773090589,4.23711309,236.01,235.92,30.1]
[1759773090800,4.94692344,236.03,235.93,0.69]
[1759773092173,4.94692344,236.03,235.94,4.23836568]
[1759773092373,4.94692344,236.03,235.95,0.69]
[1759773092574,1.93001167,236.0,235.9,31.36818182]
[1759773092782,10.87647521,236.01,235.9,35.60724435]
[1759773092783,2.64001167,235.99,235.9,35.60724435]
[1759773093182,0.71,235.98,235.9,35.60724435]
[1759773093385,0.71,235.97,235.9,35.60724435]
[1759773094286,4.94782686,235.97,235.9,35.60724435]
[1759773094970,0.71,235.97,235.9,35.60724435]
[1759773097381,0.71,235.97,235.9,46.20495524]
[1759773097895,10.59249368,236.02,235.9,46.20495524]
[1759773098106,0.67,236.01,235.91,0.68]
[1759773098683,4.90726289,236.01,235.92,4.23872499]
[1759773098888,0.67,236.0,235.92,4.23872499]
[1759773099077,0.67,236.0,235.92,34.33872499]
[1759773099600,0.67,236.0,235.92,4.23872499]
[1759773099894,0.67,235.99,235.92,4.23872499]
[1759773100672,0.67,235.98,235.92,4.23872499]
[1759773100889,0.67,235.97,235.92,4.23872499]
[1759773101289,0.67,235.96,235.92,4.23872499]
[1759773101817,0.67,235.95,235.92,4.23872499]
[1759773102095,0.67,235.97,235.92,4.23872499]
[1759773102298,0.67,235.96,235.92,4.23872499]
[1759773104384,4.23757503,235.99,235.91,4.23890466]
[1759773104701,0.67,235.98,235.91,4.23890466]
[1759773106583,4.90765011,235.98,235.91,4.23890466]
[1759773106778,4.90765011,235.98,235.9,32.04818182]
[1759773106998,0.67,235.97,235.9,31.36818182]
[1759773107383,0.67,235.96,235.9,31.36818182]
[1759773107586,0.67,235.96,235.9,35.60725422]
[1759773107894,4.23765011,235.98,235.91,0.68]
[1759773107895,4.89765011,235.98,235.91,0.68]
[1759773109006,4.89765011,235.98,235.92,4.23872499]
[1759773109700,4.89765011,235.98,235.91,0.68]
[1759773110006,6.82766178,235.98,235.9,10.56818182]
[1759773110193,0.66,235.97,235.9,10.56818182]
[1759773110393,0.66,235.96,235.9,10.56818182]
[1759773110705,0.66,235.95,235.9,10.56818182]
[1759773111004,0.66,235.94,235.9,10.56818182]
[1759773111212,0.66,235.93,235.9,10.56818182]
[1759773111507,0.66,235.92,235.9,10.56818182]
[1759773111704,0.66,235.91,235.9,10.56818182]
[1759773112987,4.89890466,235.91,235.9,10.56818182]
[1759773114603,0.66,235.91,235.9,10.56818182]
[1759773116286,0.66,235.98,235.9,11.23818182]
[1759773116488,0.66,235.98,235.9,10.56818182]
[1759773116795,4.23764725,235.98,235.91,0.67]
[1759773117218,0.66,235.97,235.9,10.56818182]
[1759773117512,22.73001167,235.93,235.9,10.56818182]
[1759773117696,1.93001167,235.91,235.9,10.56818182]
[1759773118101,2.59001167,235.91,235.9,10.56818182]
[1759773118691,6.82891633,235.91,235.9,10.56818182]
[1759773121701,55.11868963,235.93,235.9,10.56818182]
[1759773122311,34.31868963,235.93,235.9,10.56818182]
[1759773122703,4.23827281,235.95,235.9,10.56818182]
[1759773122907,0.66,235.93,235.9,10.56818182]
[1759773124024,0.66,236.01,235.91,0.67]
[1759773124395,20.8,236.0,235.92,4.23872499]
[1759773124629,20.8,236.0,235.92,4.90872499]
[1759773124998,30.94,236.04,235.93,0.67]
[1759773125199,35.17662416,236.04,235.93,0.67]
[1759773125419,1.93001167,236.03,235.93,0.67]
[1759773125604,20.8,236.01,235.93,0.67]
[1759773126522,4.23728813,236.0,235.93,0.67]
[1759773126723,20.8,236.01,235.93,4.90847508]
[1759773127613,25.03713153,236.01,235.93,0.67]
[1759773127814,0.66,236.0,235.93,0.67]
[1759773128215,0.66,236.0,235.93,4.90849626]
[1759773128418,4.89735661,236.0,235.93,4.90849626]
[1759773129939,0.66,236.0,235.93,4.90849626]
[1759773131642,4.89729895,236.0,235.93,4.90849626]
[1759773133425,0.66,235.99,235.9,10.56818182]
[1759773133748,4.23782684,235.97,235.9,10.56818182]
[1759773133916,4.89782684,235.97,235.9,10.56818182]
[1759773134424,15.77377801,236.0,235.91,0.67]
[1759773135418,4.23696118,236.02,235.91,0.67]
[1759773135724,4.89696118,236.02,235.92,14.83553746]
[1759773135920,0.66,236.02,235.93,0.67]
[1759773136730,0.2,236.04,235.93,0.67]
[1759773137223,5.09664768,236.04,235.93,30.75]
[1759773137423,5.09664768,236.04,235.94,0.67]
[1759773137731,5.09664768,236.04,235.95,4.23818605]
[1759773137930,5.09664768,236.04,235.96,0.67]
[1759773139048,5.09664768,236.04,235.97,4.23782684]
[1759773139541,5.09664768,236.04,235.97,4.92782684]
[1759773139745,5.09664768,236.04,235.97,0.69]
[1759773139953,0.2,236.04,235.98,0.69]
[1759773141329,0.2,236.04,235.99,4.23746768]
[1759773141635,0.2,236.04,236.0,0.69]
[1759773141836,0.2,236.04,236.01,0.69]
[1759773142441,0.2,236.04,236.01,4.92704361]
[1759773143051,0.2,236.04,235.98,4.23747543]
[1759773143352,0.88,236.04,235.98,34.29747543]
[1759773144152,0.2,236.04,235.99,0.69]
[1759773144459,0.2,236.04,236.0,0.69]
[1759773145263,0.2,236.04,236.0,4.9272459]
[1759773145465,0.2,236.04,236.0,0.69]
[1759773146257,0.2,236.04,236.0,4.92727327]
[1759773146966,0.2,236.04,235.99,4.23745819]
[1759773147463,0.2,236.04,235.99,4.92745819]
[1759773147679,0.2,236.04,236.0,0.69]
[1759773148253,0.2,236.04,236.01,0.69]
[1759773148459,0.2,236.04,236.02,0.69]
[1759773148860,0.2,236.04,235.99,4.23745819]
[1759773149058,0.2,236.04,236.0,0.69]
[1759773149785,0.2,236.04,236.01,4.23710859]
[1759773149983,0.2,236.04,236.02,0.69]
[1759773150284,0.2,236.04,236.02,21.49]
[1759773150462,0.2,236.04,236.03,30.06]
[1759773151462,0.2,236.04,236.03,30.75]
[1759773151668,0.2,236.04,236.03,34.98674956]
[1759773156079,0.2,236.04,236.03,4.92674956]
[1759773156383,0.2,236.04,236.03,34.98674956]
[1759773156777,0.2,236.04,236.03,0.69]
[1759773157088,0.2,236.04,236.03,34.96674956]
[1759773166074,0.2,236.04,236.03,25.72674956]
[1759773166368,0.2,236.04,236.03,55.07674956]
[1759773168971,0.2,236.04,236.03,25.03674956]
[1759773169175,0.2,236.04,236.03,55.07674956]
[1759773171494,0.2,236.04,236.03,66.63322477]
[1759773172399,0.2,236.07,236.06,20.8]
[1759773172573,0.2,236.07,236.06,50.82]
[1759773172776,0.2,236.07,236.06,51.5]
[1759773173473,0.2,236.07,236.06,50.82]
[1759773173677,0.2,236.07,236.06,20.8]
[1759773173678,0.92,236.07,236.06,20.8]
[1759773173980,0.92,236.07,236.06,50.82]
[1759773174183,0.92,236.07,236.04,20.8]
[1759773174399,0.72,236.06,236.05,30.02]
[1759773175192,0.2,236.07,236.05,30.02]
[1759773175395,0.92,236.07,236.05,30.02]
[1759773175902,0.2,236.07,236.06,30.02]
[1759773176402,0.92,236.07,236.06,30.02]
[1759773178885,0.2,236.07,236.06,30.02]
[1759773179792,0.2,236.07,236.06,34.25621113]
[1759773179987,0.2,236.07,236.06,34.93621113]
[1759773180186,0.2,236.09,236.08,31.67647521]
[1759773180388,0.2,236.15,236.12,20.8]
[1759773180619,0.2,236.23,236.19,20.8]
[1759773180804,0.2,236.23,236.2,30.02]
[1759773181115,0.2,236.23,236.21,30.02]
[1759773181613,0.92,236.23,236.21,34.25352101]
[1759773182189,0.2,236.23,236.2,24.11366818]
[1759773182403,0.2,236.23,236.21,30.02]
[1759773183408,0.2,236.23,236.21,34.25352101]
[1759773183782,0.2,236.23,236.21,20.8]
[1759773183997,0.2,236.23,236.21,50.82]
[1759773185217,0.2,236.23,236.21,61.69647521]
[1759773185615,0.2,236.23,236.21,65.92999622]
[1759773185787,0.2,236.23,236.21,66.41999622]
[1759773186389,0.2,236.23,236.22,10.87647521]
[1759773186693,0.2,236.23,236.22,11.36647521]
[1759773187087,0.1,236.24,236.22,11.36647521]
[1759773187283,0.1,236.24,236.23,41.36647521]
[1759773187694,0.1,236.24,236.23,45.5996378]
[1759773188013,0.1,236.29,236.24,10.87647521]
[1759773188210,0.1,236.29,236.25,40.87647521]
[1759773188408,0.1,236.29,236.27,31.67647521]
[1759773188714,0.1,236.29,236.27,61.67647521]
[1759773189397,0.1,236.29,236.28,10.87647521]
[1759773189709,0.2,236.31,236.3,20.8]
[1759773189912,0.2,236.31,236.3,50.8]
[1759773190611,0.2,236.31,236.3,20.8]
[1759773190911,0.2,236.31,236.3,50.8]
[1759773192997,0.92,236.31,236.3,20.8]
[1759773193191,0.92,236.31,236.27,20.8]
[1759773193397,0.92,236.31,236.28,30.0]
[1759773193695,0.72,236.3,236.28,34.23223332]
[1759773194107,0.2,236.31,236.29,20.8]
[1759773194325,0.2,236.31,236.3,30.0]
[1759773194706,0.1,236.32,236.3,40.87647521]
[1759773194911,0.1,236.32,236.28,20.8]
[1759773194912,0.72,236.31,236.28,20.8]
[1759773195117,0.1,236.32,236.31,20.8]
[1759773195425,0.1,236.32,236.31,50.8]
[1759773195803,0.1,236.32,236.31,55.0317295]
[1759773196001,0.1,236.32,236.31,65.90820471]
[1759773196204,0.72,236.37,236.35,20.8]
[1759773196415,0.72,236.37,236.36,29.98]
[1759773196619,0.1,236.38,236.36,29.98]
[1759773197204,0.72,236.37,236.36,29.98]